[Event "70th RUS-ch Women Higher League 2020"]
[Site "Sochi"]
[Date "2020.10.09"]
[Round "2.15"]
[White "Getman, Tatyana"]
[Black "Bivol, Alina"]
[Result "1/2-1/2"]
[ECO "D71"]
[WhiteElo "2271"]
[BlackElo "2393"]
[Annotator "ChessBase"]
[PlyCount "121"]
[EventDate "2020.10.08"]
[EventType "swiss"]
[EventCountry "RUS"]
[SourceTitle "playchess.com"]
[Source "ChessBase"]
[SourceQuality "1"]
[TimeControl "40/5400+30:1800+30"]

1. d4 {[%emt 0:00:00]} Nf6 {[%emt 0:00:00]} 2. c4 {[%emt 0:00:00]} g6 {[%emt 0:00:00]} 3. g3 {[%emt 0:00:00]} Bg7 {[%emt 0:00:46]} 4. Bg2 {[%emt 0:00:00]} d5 {[%emt 0:00:04]} 5. cxd5 {[%emt 0:00:36]} Nxd5 {[%emt 0:00:04]} 6. Nf3 {[%emt 0:01:00]} Nb6 {[%emt 0:00:13]} 7. O-O {[%emt 0:01:38]} Nc6 {[%emt 0:00:02]} 8. e3 {[%emt 0:02:20]} O-O {[%emt 0:00:05]} 9. Nc3 {[%emt 0:04:23]} Re8 {[%emt 0:00:10]} 10. Nd2 {[%emt 0:11:36]} e5 {[%emt 0:03:29]} 11. d5 {[%emt 0:01:10]} Nb4 {[%emt 0:07:04]} 12. Qb3 {[%emt 0:12:49]} a5 {[%emt 0:04:35]} 13. a3 {[%emt 0:03:09]} Na6 {[%emt 0:00:23]} 14. Nc4 {[%emt 0:07:13]} Nc5 {[%emt 0:01:56]} 15. Qa2 {[%emt 0:10:24]} e4 {[%emt 0:04:46]} 16. Nxb6 {[%emt 0:01:58]} cxb6 {[%emt 0:02:35]} 17. a4 {[%emt 0:11:34]} Bf5 {[%emt 0:03:58]} 18. Bd2 {[%emt 0:03:18]} Qd7 {[%emt 0:03:18]} 19. Nb5 {[%emt 0:01:25]} Bh3 {[%emt 0:02:27]} 20. Bc3 {[%emt 0:03:14]} Bxc3 {[%emt 0:03:57]} 21. Nxc3 {[%emt 0:04:26]} Rad8 {[%emt 0:03:11]} 22. Rad1 {[%emt 0:00:44]} Bg4 {[%emt 0:11:51]} 23. Rd4 {[%emt 0:00:54]} Qf5 {[%emt 0:04:13]} 24. Qb1 {[%emt 0:02:12]} Bf3 {[%emt 0:04:35]} 25. Bxf3 {[%emt 0:00:51]} Qxf3 {[%emt 0:00:03]} 26. Qd1 {[%emt 0:00:25]} Qf5 {[%emt 0:02:50]} 27. f3 {[%emt 0:01:20]} exf3 {[%emt 0:02:21]} 28. Qxf3 {[%emt 0:00:32]} Qxf3 {[%emt 0:00:15]} 29. Rxf3 {[%emt 0:00:06]} f5 {[%emt 0:00:06]} 30. g4 {[%emt 0:05:17]} fxg4 {[%emt 0:08:16]} 31. Rxg4 {[%emt 0:00:05]} Nd3 {[%emt 0:00:05]} 32. Rd4 {[%emt 0:00:36]} Ne1 {[%emt 0:01:20]} 33. Rg3 {[%emt 0:04:46]} Rf8 {[%emt 0:01:26]} 34. Rd1 {[%emt 0:01:14]} Nf3+ {[%emt 0:00:18]} 35. Kg2 {[%emt 0:00:07]} Nh4+ {[%emt 0:02:08]} 36. Kh3 {[%emt 0:00:23]} Nf5 {[%emt 0:00:23]} 37. Rf3 {[%emt 0:01:02]} Rfe8 {[%emt 0:00:04]} 38. e4 {[%emt 0:01:13]} Nd6 {[%emt 0:00:01]} 39. Rd4 {[%emt 0:01:54]} Re5 {[%emt 0:00:04]} 40. Kg2 {[%emt 0:00:00]} Rde8 {[%emt 0:00:00]} 41. Rfd3 {[%emt 0:13:00]} Kf7 {[%emt 0:04:24]} 42. Kf3 {[%emt 0:03:03]} Ke7 {[%emt 0:01:08]} 43. Ke2 {[%emt 0:03:18]} Kd7 {[%emt 0:00:11]} 44. Rh3 {[%emt 0:01:25]} R8e7 {[%emt 0:03:57]} 45. Kd3 {[%emt 0:00:42]} Rg5 {[%emt 0:00:20]} 46. Nb1 {[%emt 0:03:06]} Nf7 {[%emt 0:13:13]} 47. Kc4 {[%emt 0:01:03]} Nd6+ {[%emt 0:06:19]} 48. Kd3 {[%emt 0:00:05]} Rg2 {[%emt 0:01:15]} 49. Nd2 {[%emt 0:00:33]} b5 {[%emt 0:00:54]} 50. axb5 {[%emt 0:01:24]} Nxb5 {[%emt 0:00:03]} 51. Ra4 {[%emt 0:00:13]} Nd6 {[%emt 0:00:08]} 52. Rxa5 {[%emt 0:01:03]} Rxd2+ {[%emt 0:01:09]} 53. Kxd2 {[%emt 0:00:59]} Nc4+ {[%emt 0:00:01]} 54. Kc3 {[%emt 0:00:40]} Nxa5 {[%emt 0:00:02]} 55. b4 {[%emt 0:00:09]} Nc6 {[%emt 0:01:09]} 56. dxc6+ {[%emt 0:00:04]} bxc6 {[%emt 0:00:03]} 57. Kd4 {[%emt 0:00:36]} Kd6 {[%emt 0:00:04]} 58. Rf3 {[%emt 0:01:29]} Rb7 {[%emt 0:01:11]} 59. Rf6+ {[%emt 0:01:19]} Ke7 {[%emt 0:00:01]} 60. Rxc6 {[%emt 0:00:09]} Rxb4+ {[%emt 0:00:04]} 61. Ke5 {[%emt 0:00:25]} 1/2-1/2

[Event "70th RUS-ch Women Higher League 2020"]
[Site "Sochi"]
[Date "2020.10.09"]
[Round "2.16"]
[White "Kovalevskaya, Ekaterina"]
[Black "Berezina, Mariya"]
[Result "1-0"]
[ECO "A06"]
[WhiteElo "2384"]
[BlackElo "1982"]
[Annotator "ChessBase"]
[PlyCount "111"]
[EventDate "2020.10.08"]
[EventType "swiss"]
[EventCountry "RUS"]
[SourceTitle "playchess.com"]
[Source "ChessBase"]
[SourceQuality "1"]
[TimeControl "40/5400+30:1800+30"]

1. Nf3 {[%emt 0:00:00]} d5 {[%emt 0:03:08]} 2. g3 {[%emt 0:00:00]} Nf6 {[%emt 0:00:05]} 3. Bg2 {[%emt 0:00:00]} g6 {[%emt 0:00:12]} 4. O-O {[%emt 0:00:01]} Bg7 {[%emt 0:00:04]} 5. d4 {[%emt 0:00:19]} O-O {[%emt 0:00:14]} 6. Be3 {[%emt 0:00:15]} e6 {[%emt 0:01:29]} 7. Qc1 {[%emt 0:00:54]} b6 {[%emt 0:05:51]} 8. c4 {[%emt 0:12:43]} Ba6 {[%emt 0:04:26]} 9. Ne5 {[%emt 0:05:00]} Nfd7 {[%emt 0:08:24]} 10. cxd5 {[%emt 0:12:03]} Nxe5 {[%emt 0:05:50]} 11. dxe5 {[%emt 0:20:47]} exd5 {[%emt 0:01:28]} 12. Bh6 {[%emt 0:02:41]} Bxe2 {[%emt 0:06:35]} 13. Re1 {[%emt 0:00:13]} Bg4 {[%emt 0:00:19]} 14. Nc3 {[%emt 0:06:59]} c6 {[%emt 0:01:25]} 15. Bxg7 {[%emt 0:00:47]} Kxg7 {[%emt 0:00:07]} 16. b4 {[%emt 0:00:29]} Na6 {[%emt 0:14:38]} 17. Qf4 {[%emt 0:10:23]} Be6 {[%emt 0:14:03]} 18. Rad1 {[%emt 0:00:08]} b5 {[%emt 0:06:31]} 19. a3 {[%emt 0:07:25]} Qe7 {[%emt 0:02:23]} 20. Ne2 {[%emt 0:01:57]} Nb8 {[%emt 0:05:29]} 21. a4 {[%emt 0:05:04]} bxa4 {[%emt 0:02:52]} 22. Ra1 {[%emt 0:00:06]} Nd7 {[%emt 0:01:17]} 23. Rxa4 {[%emt 0:04:41]} Nb6 {[%emt 0:05:12]} 24. Ra5 {[%emt 0:00:22]} Nc4 {[%emt 0:01:23]} 25. Rc5 {[%emt 0:00:09]} Rab8 {[%emt 0:02:20]} 26. Nd4 {[%emt 0:02:13]} Bd7 {[%emt 0:04:07]} 27. Nxc6 {[%emt 0:01:58]} Bxc6 {[%emt 0:00:05]} 28. Rxc6 {[%emt 0:04:06]} Rfd8 {[%emt 0:02:50]} 29. Bxd5 {[%emt 0:01:58]} Rxd5 {[%emt 0:00:04]} 30. Rxc4 {[%emt 0:00:40]} Rdb5 {[%emt 0:00:29]} 31. Ree4 {[%emt 0:00:29]} R8b6 {[%emt 0:00:37]} 32. Qd2 {[%emt 0:00:32]} Rb7 {[%emt 0:01:14]} 33. Qc3 {[%emt 0:00:10]} R5b6 {[%emt 0:00:36]} 34. h4 {[%emt 0:00:47]} h5 {[%emt 0:00:14]} 35. Rc6 {[%emt 0:00:31]} Rxc6 {[%emt 0:00:17]} 36. Qxc6 {[%emt 0:00:02]} Rc7 {[%emt 0:00:26]} 37. Qd6 {[%emt 0:00:55]} Qxd6 {[%emt 0:00:38]} 38. exd6 {[%emt 0:00:02]} Rd7 {[%emt 0:00:06]} 39. Re7 {[%emt 0:00:28]} Rxd6 {[%emt 0:00:37]} 40. Rxa7 {[%emt 0:00:00]} Rd1+ {[%emt 0:00:00]} 41. Kg2 {[%emt 0:00:06]} Rb1 {[%emt 0:01:20]} 42. Rb7 {[%emt 0:00:07]} Rb2 {[%emt 0:04:38]} 43. b5 {[%emt 0:11:02]} Kf6 {[%emt 0:00:20]} 44. b6 {[%emt 0:02:37]} Ke6 {[%emt 0:00:28]} 45. Kf3 {[%emt 0:01:03]} f6 {[%emt 0:02:25]} 46. Ke3 {[%emt 0:06:23]} Kf5 {[%emt 0:00:40]} 47. Rb8 {[%emt 0:00:18]} Kg4 {[%emt 0:05:35]} 48. b7 {[%emt 0:03:06]} Kh3 {[%emt 0:04:16]} 49. Rg8 {[%emt 0:04:51]} Rxb7 {[%emt 0:00:06]} 50. Rxg6 {[%emt 0:00:04]} Rb6 {[%emt 0:01:13]} 51. Kf3 {[%emt 0:01:59]} Rb3+ {[%emt 0:01:34]} 52. Ke4 {[%emt 0:00:21]} Rb4+ {[%emt 0:01:12]} 53. Kf5 {[%emt 0:01:33]} Rb2 {[%emt 0:07:03]} 54. Kxf6 {[%emt 0:00:58]} Rxf2+ {[%emt 0:00:09]} 55. Kg7 {[%emt 0:00:08]} Rf5 {[%emt 0:03:13]} 56. Kh6 {[%emt 0:00:08]} 1-0

[Event "70th RUS-ch Women Higher League 2020"]
[Site "Sochi"]
[Date "2020.10.09"]
[Round "2.17"]
[White "Miroshnik, Ekaterina"]
[Black "Ovod, Evgenija"]
[Result "1-0"]
[ECO "A80"]
[WhiteElo "2104"]
[BlackElo "2372"]
[Annotator "ChessBase"]
[PlyCount "140"]
[EventDate "2020.10.08"]
[EventType "swiss"]
[EventCountry "RUS"]
[SourceTitle "playchess.com"]
[Source "ChessBase"]
[SourceQuality "1"]
[TimeControl "40/5400+30:1800+30"]

1. d4 {[%emt 0:00:00]} f5 {[%emt 0:00:00]} 2. Nf3 {[%emt 0:00:11]} Nf6 {[%emt 0:00:00]} 3. g3 {[%emt 0:01:36]} d6 {[%emt 0:00:08]} 4. Bg2 {[%emt 0:00:06]} g6 {[%emt 0:00:09]} 5. O-O {[%emt 0:00:06]} Bg7 {[%emt 0:00:04]} 6. b3 {[%emt 0:01:35]} O-O {[%emt 0:00:10]} 7. Bb2 {[%emt 0:00:03]} Na6 {[%emt 0:07:20]} 8. c4 {[%emt 0:01:21]} c5 {[%emt 0:00:16]} 9. e3 {[%emt 0:03:02]} Rb8 {[%emt 0:12:46]} 10. Nc3 {[%emt 0:01:51]} b6 {[%emt 0:00:18]} 11. Nb5 {[%emt 0:08:23]} Qd7 {[%emt 0:00:07]} 12. d5 {[%emt 0:02:04]} h6 {[%emt 0:01:44]} 13. h4 {[%emt 0:04:41]} Rb7 {[%emt 0:08:59]} 14. a4 {[%emt 0:08:21]} Nc7 {[%emt 0:02:59]} 15. Nc3 {[%emt 0:01:10]} a6 {[%emt 0:00:39]} 16. Ne2 {[%emt 0:03:18]} b5 {[%emt 0:01:41]} 17. axb5 {[%emt 0:00:53]} axb5 {[%emt 0:00:05]} 18. Rb1 {[%emt 0:12:39]} bxc4 {[%emt 0:01:57]} 19. bxc4 {[%emt 0:00:57]} Rb4 {[%emt 0:00:06]} 20. Bxf6 {[%emt 0:02:54]} Rxb1 {[%emt 0:00:25]} 21. Qxb1 {[%emt 0:00:05]} Bxf6 {[%emt 0:00:14]} 22. Nf4 {[%emt 0:04:19]} Qe8 {[%emt 0:10:54]} 23. Qb6 {[%emt 0:08:55]} Na6 {[%emt 0:00:30]} 24. Ne6 {[%emt 0:06:00]} Bxe6 {[%emt 0:00:22]} 25. Qxa6 {[%emt 0:00:29]} Bc8 {[%emt 0:08:37]} 26. Qa8 {[%emt 0:03:58]} Qd7 27. Rb1 {[%emt 0:01:34]} Qc7 {[%emt 0:09:41]} 28. Qa2 {[%emt 0:02:05]} Bd7 {[%emt 0:01:05]} 29. Ne1 {[%emt 0:01:04]} Rb8 {[%emt 0:00:39]} 30. Rxb8+ {[%emt 0:00:43]} Qxb8 {[%emt 0:00:04]} 31. Nd3 {[%emt 0:00:25]} Kf7 {[%emt 0:05:27]} 32. Bf1 {[%emt 0:01:00]} Qb7 {[%emt 0:00:47]} 33. Bg2 {[%emt 0:00:45]} Bc8 {[%emt 0:00:40]} 34. Nf4 {[%emt 0:02:24]} Qa6 {[%emt 0:00:44]} 35. Qxa6 {[%emt 0:01:17]} Bxa6 {[%emt 0:00:04]} 36. Bf1 {[%emt 0:00:03]} Bc3 {[%emt 0:04:25]} 37. Bd3 {[%emt 0:00:53]} Kf6 {[%emt 0:08:05]} 38. f3 {[%emt 0:10:27]} Be1 {[%emt 0:02:10]} 39. Kg2 Bc8 {[%emt 0:00:28]} 40. Ne2 {[%emt 0:00:00]} g5 {[%emt 0:00:00]} 41. hxg5+ {[%emt 0:06:01]} hxg5 {[%emt 0:04:50]} 42. Kf1 {[%emt 0:01:38]} Bd2 {[%emt 0:00:19]} 43. Kf2 {[%emt 0:00:10]} e6 {[%emt 0:10:38]} 44. e4 {[%emt 0:16:48]} Ke5 {[%emt 0:00:22]} 45. Kg2 {[%emt 0:02:16]} fxe4 {[%emt 0:07:04]} 46. Bxe4 {[%emt 0:03:22]} Kf6 {[%emt 0:03:55]} 47. dxe6 {[%emt 0:04:10]} Bxe6 {[%emt 0:00:07]} 48. Bd3 {[%emt 0:00:01]} d5 {[%emt 0:05:20]} 49. cxd5 {[%emt 0:00:02]} Bxd5 {[%emt 0:00:03]} 50. Kf2 {[%emt 0:00:17]} Bb3 {[%emt 0:00:07]} 51. Bh7 {[%emt 0:02:20]} Ke7 {[%emt 0:01:40]} 52. g4 {[%emt 0:02:44]} Kd6 {[%emt 0:01:44]} 53. Ng3 {[%emt 0:00:15]} Bf4 {[%emt 0:00:38]} 54. Ne4+ {[%emt 0:00:52]} Kc6 {[%emt 0:00:11]} 55. Ke2 {[%emt 0:00:51]} Kb5 {[%emt 0:04:33]} 56. Nf6 {[%emt 0:01:12]} Kb4 {[%emt 0:00:54]} 57. Be4 {[%emt 0:00:11]} Bc1 {[%emt 0:05:30]} 58. Nd5+ {[%emt 0:00:48]} Kc4 {[%emt 0:00:17]} 59. Bh7 {[%emt 0:01:56]} Kd4 {[%emt 0:00:47]} 60. Ne7 {[%emt 0:00:23]} Kc3 {[%emt 0:01:38]} 61. Be4 {[%emt 0:00:49]} c4 {[%emt 0:02:27]} 62. Nd5+ {[%emt 0:00:47]} Kb2 {[%emt 0:02:17]} 63. Nb4 {[%emt 0:00:12]} Bf4 {[%emt 0:00:35]} 64. Bf5 {[%emt 0:01:03]} Kc1 {[%emt 0:00:33]} 65. Nd5 {[%emt 0:01:00]} Bd1+ {[%emt 0:00:25]} 66. Kf2 {[%emt 0:00:13]} Bd6 {[%emt 0:00:44]} 67. f4 {[%emt 0:00:32]} gxf4 {[%emt 0:00:21]} 68. g5 {[%emt 0:00:09]} Bc5+ {[%emt 0:00:39]} 69. Kf1 {[%emt 0:00:03]} f3 {[%emt 0:00:12]} 70. Nc3 {[%emt 0:00:54]} Bc2 {[%emt 0:01:21]} 1-0

[Event "70th RUS-ch Women Higher League 2020"]
[Site "Sochi"]
[Date "2020.10.09"]
[Round "2.18"]
[White "Kochukova, Anna"]
[Black "Charochkina, Daria"]
[Result "1-0"]
[ECO "B06"]
[WhiteElo "2093"]
[BlackElo "2356"]
[Annotator "ChessBase"]
[PlyCount "75"]
[EventDate "2020.10.08"]
[EventType "swiss"]
[EventCountry "RUS"]
[SourceTitle "playchess.com"]
[Source "ChessBase"]
[SourceQuality "1"]
[TimeControl "40/5400+30:1800+30"]

1. e4 {[%emt 0:00:00]} g6 {[%emt 0:01:35]} 2. d4 {[%emt 0:00:00]} Bg7 {[%emt 0:00:40]} 3. Nf3 {[%emt 0:00:06]} d6 {[%emt 0:00:10]} 4. c3 {[%emt 0:00:24]} Nf6 {[%emt 0:00:21]} 5. Bd3 {[%emt 0:00:37]} O-O {[%emt 0:00:11]} 6. O-O {[%emt 0:00:27]} c5 {[%emt 0:00:21]} 7. h3 {[%emt 0:03:36]} a6 {[%emt 0:01:04]} 8. a4 {[%emt 0:00:35]} Qc7 {[%emt 0:00:26]} 9. Re1 {[%emt 0:03:23]} Rd8 {[%emt 0:18:55]} 10. Qe2 {[%emt 0:06:00]} b6 {[%emt 0:00:30]} 11. Be3 {[%emt 0:06:39]} Bb7 {[%emt 0:07:43]} 12. Nbd2 {[%emt 0:00:37]} Nbd7 {[%emt 0:06:52]} 13. Bg5 {[%emt 0:11:45]} Nf8 {[%emt 0:13:08]} 14. Qe3 {[%emt 0:06:10]} Re8 {[%emt 0:03:23]} 15. Bh6 {[%emt 0:07:33]} e5 {[%emt 0:00:57]} 16. d5 {[%emt 0:01:56]} Nh5 {[%emt 0:01:25]} 17. Bxg7 {[%emt 0:03:52]} Kxg7 {[%emt 0:00:08]} 18. b4 {[%emt 0:02:16]} Nf4 {[%emt 0:02:35]} 19. Bf1 {[%emt 0:04:22]} cxb4 {[%emt 0:06:36]} 20. cxb4 {[%emt 0:05:21]} f5 {[%emt 0:00:22]} 21. Rac1 {[%emt 0:11:48]} Qd8 {[%emt 0:00:13]} 22. g3 {[%emt 0:03:25]} fxe4 {[%emt 0:01:44]} 23. gxf4 {[%emt 0:01:58]} exf3 {[%emt 0:00:09]} 24. Qxf3 {[%emt 0:02:01]} Nd7 {[%emt 0:12:37]} 25. Nc4 {[%emt 0:08:34]} Nf6 {[%emt 0:01:28]} 26. fxe5 {[%emt 0:00:55]} dxe5 {[%emt 0:00:06]} 27. Nxe5 {[%emt 0:03:52]} Qd6 {[%emt 0:05:37]} 28. Ng4 {[%emt 0:03:24]} Nxd5 {[%emt 0:00:53]} 29. Red1 {[%emt 0:00:52]} Rad8 {[%emt 0:01:40]} 30. Bg2 {[%emt 0:01:11]} Rf8 {[%emt 0:07:38]} 31. Qd3 {[%emt 0:00:36]} Qxb4 {[%emt 0:04:26]} 32. Bxd5 {[%emt 0:00:59]} Rxd5 {[%emt 0:00:21]} 33. Rc7+ {[%emt 0:00:08]} Kh8 {[%emt 0:00:22]} 34. Qe2 {[%emt 0:00:59]} Rxd1+ {[%emt 0:01:49]} 35. Qxd1 {[%emt 0:00:00]} Qb2 {[%emt 0:00:34]} 36. Rxb7 {[%emt 0:00:52]} h5 {[%emt 0:00:02]} 37. Qd7 {[%emt 0:00:42]} Qc1+ {[%emt 0:00:58]} 38. Kg2 {[%emt 0:00:12]} 1-0

[Event "70th RUS-ch Women Higher League 2020"]
[Site "Sochi"]
[Date "2020.10.10"]
[Round "3.12"]
[White "Mukhina, Jana"]
[Black "Yakimova, Mariya"]
[Result "0-1"]
[ECO "B22"]
[WhiteElo "2025"]
[BlackElo "2269"]
[Annotator "NA RC"]
[PlyCount "52"]
[EventDate "2020.10.08"]
[EventType "swiss"]
[EventCountry "RUS"]
[SourceTitle "playchess.com"]
[Source "ChessBase"]
[SourceQuality "1"]
[TimeControl "40/5400+30:1800+30"]

1. e4 {[%emt 0:00:41]} c5 {[%emt 0:00:00]} 2. c3 {[%emt 0:01:24]} d5 {[%emt 0:00:00]} 3. exd5 {[%emt 0:00:07]} Qxd5 {[%emt 0:00:00]} 4. d4 {[%emt 0:00:12]} Nc6 {[%emt 0:00:00]} 5. Nf3 {[%emt 0:00:13]} Bf5 {[%emt 0:00:00]} 6. Be3 {[%emt 0:01:12]} e6 {[%emt 0:00:00]} 7. Na3 {[%emt 0:00:13]} cxd4 {[%emt 0:00:16]} 8. Nb5 {[%emt 0:00:31]} O-O-O {[%emt 0:00:31]} 9. Nbxd4 {[%emt 0:01:01]} Bc5 {[%emt 0:04:43]} 10. Be2 {[%emt 0:00:02]} Nxd4 {[%emt 0:15:09]} 11. Nxd4 {[%emt 0:00:04]} Be4 {[%emt 0:16:28]} 12. b4 {[%emt 0:32:06]} Bb6 {[%emt 0:06:55]} 13. c4 {[%emt 0:03:36]} Qe5 {[%emt 0:02:23]} 14. c5 {[%emt 0:19:09]} Bc7 {[%emt 0:02:00]} 15. Qa4 {[%emt 0:20:00]} Rxd4 {[%emt 0:05:36]} 16. Bxd4 {[%emt 0:00:04]} Qxd4 {[%emt 0:00:01]} 17. Qe8+ {[%emt 0:00:56]} Qd8 {[%emt 0:00:33]} 18. Qxf7 {[%emt 0:00:36]} Qe7 {[%emt 0:00:46]} 19. Qxe7 {[%emt 0:09:01]} Nxe7 {[%emt 0:00:05]} 20. O-O {[%emt 0:00:43]} Nd5 {[%emt 0:00:33]} 21. a3 {[%emt 0:01:03]} Be5 {[%emt 0:02:12]} 22. Rac1 {[%emt 0:01:01]} Nf4 {[%emt 0:04:44]} 23. Bc4 {[%emt 0:04:44]} Bb2 {[%emt 0:01:22]} 24. Rce1 {[%emt 0:01:25]} Bxg2 {[%emt 0:00:25]} 25. Bxe6+ {[%emt 0:01:25]} Kb8 {[%emt 0:00:10]} 26. Re4 {[%emt 0:00:39]} Bxe4 {[%emt 0:00:10]} 0-1

[Event "70th RUS-ch Women Higher League 2020"]
[Site "Sochi"]
[Date "2020.10.10"]
[Round "3.17"]
[White "Paramzina, Anastasya"]
[Black "Salakhova, Adelya"]
[Result "1-0"]
[ECO "B34"]
[WhiteElo "2237"]
[BlackElo "1885"]
[Annotator "ChessBase"]
[PlyCount "127"]
[EventDate "2020.10.08"]
[EventType "swiss"]
[EventCountry "RUS"]
[SourceTitle "playchess.com"]
[Source "ChessBase"]
[SourceQuality "1"]
[TimeControl "40/5400+30:1800+30"]

1. e4 {[%emt 0:03:21]} c5 {[%emt 0:00:00]} 2. Nf3 {[%emt 0:00:30]} Nc6 {[%emt 0:00:00]} 3. d4 {[%emt 0:01:01]} cxd4 {[%emt 0:00:06]} 4. Nxd4 {[%emt 0:00:03]} Nf6 {[%emt 0:00:22]} 5. Nc3 {[%emt 0:00:16]} e5 {[%emt 0:00:29]} 6. Ndb5 {[%emt 0:00:11]} d6 {[%emt 0:00:13]} 7. Nd5 {[%emt 0:00:14]} Nxd5 {[%emt 0:01:01]} 8. exd5 {[%emt 0:00:33]} Nb8 {[%emt 0:00:16]} 9. a4 {[%emt 0:00:33]} Be7 {[%emt 0:01:24]} 10. Bd2 {[%emt 0:00:34]} a6 {[%emt 0:00:32]} 11. Na3 {[%emt 0:00:34]} a5 {[%emt 0:00:47]} 12. Bb5+ {[%emt 0:09:22]} Nd7 {[%emt 0:03:58]} 13. O-O {[%emt 0:00:50]} O-O {[%emt 0:00:43]} 14. Nc4 {[%emt 0:04:49]} f5 {[%emt 0:15:40]} 15. Qe1 {[%emt 0:10:36]} b6 {[%emt 0:02:39]} 16. f4 {[%emt 0:00:16]} Qc7 {[%emt 0:13:35]} 17. Bc6 {[%emt 0:22:37]} Ba6 {[%emt 0:14:32]} 18. Rf3 {[%emt 0:13:51]} Rab8 {[%emt 0:15:13]} 19. Na3 {[%emt 0:01:42]} Bf6 {[%emt 0:02:58]} 20. Bc3 {[%emt 0:10:20]} Rbe8 {[%emt 0:05:10]} 21. Qf2 {[%emt 0:07:18]} Re7 {[%emt 0:05:41]} 22. Nb5 {[%emt 0:03:12]} Bxb5 {[%emt 0:00:49]} 23. axb5 {[%emt 0:00:03]} Nc5 {[%emt 0:02:26]} 24. fxe5 {[%emt 0:00:14]} dxe5 {[%emt 0:02:51]} 25. Rxf5 {[%emt 0:01:16]} Ne4 {[%emt 0:01:05]} 26. Qe3 {[%emt 0:00:24]} Nd6 {[%emt 0:04:05]} 27. Rff1 {[%emt 0:00:14]} e4 {[%emt 0:00:48]} 28. Bxf6 {[%emt 0:02:10]} gxf6 {[%emt 0:00:06]} 29. b4 {[%emt 0:00:32]} axb4 {[%emt 0:01:59]} 30. Ra6 {[%emt 0:00:15]} Nc8 {[%emt 0:01:05]} 31. Ra8 {[%emt 0:01:27]} f5 {[%emt 0:00:33]} 32. g3 {[%emt 0:00:13]} Rg7 {[%emt 0:00:54]} 33. Qf4 {[%emt 0:01:04]} Qe7 {[%emt 0:01:12]} 34. Rxc8 {[%emt 0:03:28]} Rxc8 {[%emt 0:00:07]} 35. d6 {[%emt 0:00:02]} Qf6 {[%emt 0:01:30]} 36. Qxf5 {[%emt 0:00:24]} Qxf5 {[%emt 0:00:34]} 37. Rxf5 {[%emt 0:00:03]} e3 {[%emt 0:01:22]} 38. Kf1 {[%emt 0:01:06]} Rd8 {[%emt 0:00:46]} 39. Ke2 {[%emt 0:02:32]} Ra7 {[%emt 0:00:55]} 40. Rf6 {[%emt 0:00:00]} Kg7 {[%emt 0:00:00]} 41. Re6 {[%emt 0:01:52]} Ra3 {[%emt 0:04:41]} 42. d7 {[%emt 0:05:04]} Rf8 {[%emt 0:03:46]} 43. Re7+ {[%emt 0:08:35]} Kh6 {[%emt 0:00:22]} 44. Re6+ {[%emt 0:02:44]} Kg7 {[%emt 0:02:18]} 45. Re7+ {[%emt 0:02:15]} Kh6 {[%emt 0:00:07]} 46. Rxe3 {[%emt 0:02:24]} Rxe3+ {[%emt 0:00:29]} 47. Kxe3 {[%emt 0:00:03]} b3 {[%emt 0:01:03]} 48. cxb3 {[%emt 0:00:35]} Kg5 {[%emt 0:00:29]} 49. Ke4 {[%emt 0:01:22]} Kf6 {[%emt 0:00:27]} 50. Kf4 {[%emt 0:00:09]} Rg8 {[%emt 0:05:38]} 51. g4 {[%emt 0:01:40]} Rf8 {[%emt 0:01:12]} 52. g5+ {[%emt 0:04:02]} Ke7+ {[%emt 0:07:10]} 53. Kg4 {[%emt 0:00:06]} Rg8 {[%emt 0:02:17]} 54. h4 {[%emt 0:01:28]} h6 {[%emt 0:00:25]} 55. Kh5 {[%emt 0:02:02]} hxg5 {[%emt 0:00:03]} 56. hxg5 {[%emt 0:00:03]} Rh8+ {[%emt 0:00:08]} 57. Kg6 {[%emt 0:01:50]} Rh3 {[%emt 0:01:23]} 58. Kg7 {[%emt 0:00:05]} Rxb3 {[%emt 0:00:29]} 59. g6 {[%emt 0:00:05]} Rh3 {[%emt 0:00:24]} 60. Kg8 {[%emt 0:00:12]} Rg3 {[%emt 0:02:05]} 61. g7 {[%emt 0:00:10]} Rg5 {[%emt 0:01:12]} 62. Kh7 {[%emt 0:01:09]} Rh5+ {[%emt 0:02:16]} 63. Kg6 {[%emt 0:00:05]} Rh3 {[%emt 0:00:11]} 64. d8=Q+ {[%emt 0:00:21]} 1-0

[Event "70th RUS-ch Women Higher League 2020"]
[Site "Sochi"]
[Date "2020.10.11"]
[Round "4.15"]
[White "Kochukova, Anna"]
[Black "Bykova, Anastasia"]
[Result "0-1"]
[ECO "B18"]
[WhiteElo "2093"]
[BlackElo "2215"]
[Annotator "ChessBase"]
[PlyCount "74"]
[EventDate "2020.10.08"]
[EventType "swiss"]
[EventCountry "RUS"]
[SourceTitle "playchess.com"]
[Source "ChessBase"]
[SourceQuality "1"]
[TimeControl "40/5400+30:1800+30"]

1. e4 {[%emt 0:00:00]} c6 {[%emt 0:00:00]} 2. d4 {[%emt 0:00:00]} d5 {[%emt 0:00:00]} 3. Nc3 {[%emt 0:00:00]} dxe4 {[%emt 0:00:00]} 4. Nxe4 {[%emt 0:00:08]} Bf5 {[%emt 0:00:00]} 5. Ng3 {[%emt 0:00:13]} Bg6 {[%emt 0:00:00]} 6. Nh3 {[%emt 0:00:22]} Nf6 {[%emt 0:00:03]} 7. Nf4 {[%emt 0:00:13]} Nbd7 {[%emt 0:00:15]} 8. Bc4 {[%emt 0:00:37]} e6 {[%emt 0:09:35]} 9. O-O {[%emt 0:00:20]} Nb6 {[%emt 0:07:59]} 10. Bb3 {[%emt 0:01:19]} c5 {[%emt 0:01:21]} 11. dxc5 {[%emt 0:18:56]} Bxc5 {[%emt 0:01:51]} 12. Qf3 {[%emt 0:01:10]} Qc7 {[%emt 0:02:19]} 13. Bxe6 {[%emt 0:11:46]} fxe6 {[%emt 0:00:44]} 14. Nxe6 {[%emt 0:02:39]} Qc8 {[%emt 0:00:16]} 15. Nxg7+ {[%emt 0:10:59]} Kf7 {[%emt 0:00:14]} 16. N7h5 {[%emt 0:02:21]} Qc6 {[%emt 0:03:20]} 17. Qf4 {[%emt 0:05:23]} Nbd5 {[%emt 0:13:04]} 18. Qh4 {[%emt 0:07:04]} Be7 {[%emt 0:01:18]} 19. Nxf6 {[%emt 0:07:07]} Qxf6 {[%emt 0:07:22]} 20. Qc4 {[%emt 0:01:42]} Qc6 {[%emt 0:00:21]} 21. Qe2 {[%emt 0:04:47]} Nf6 {[%emt 0:07:47]} 22. c3 {[%emt 0:06:27]} Rad8 {[%emt 0:01:15]} 23. Re1 {[%emt 0:00:17]} Rhe8 {[%emt 0:00:31]} 24. Be3 {[%emt 0:01:39]} Bd3 {[%emt 0:01:59]} 25. Qd1 {[%emt 0:00:42]} Be4 {[%emt 0:02:25]} 26. Qb3+ {[%emt 0:00:22]} Bd5 {[%emt 0:00:47]} 27. Qc2 {[%emt 0:00:39]} Bxg2 {[%emt 0:00:30]} 28. Qf5 {[%emt 0:04:02]} Qf3 {[%emt 0:07:06]} 29. Bxa7 {[%emt 0:02:30]} Qxf5 {[%emt 0:01:24]} 30. Nxf5 {[%emt 0:00:02]} Bh3 {[%emt 0:00:26]} 31. Nxe7 {[%emt 0:04:58]} Rxe7 {[%emt 0:00:05]} 32. Rxe7+ {[%emt 0:02:17]} Kxe7 {[%emt 0:00:02]} 33. Re1+ {[%emt 0:01:45]} Kf7 {[%emt 0:00:04]} 34. Bc5 {[%emt 0:00:23]} Rg8+ {[%emt 0:01:21]} 35. Kh1 {[%emt 0:00:02]} Bg2+ {[%emt 0:00:10]} 36. Kg1 {[%emt 0:00:02]} Bd5+ {[%emt 0:00:42]} 37. Kf1 {[%emt 0:00:07]} Bc4+ {[%emt 0:00:05]} 0-1